bitfinex-derivatives/quotes_BNBF0:USTF0_20250609
["timestamp","ask_amount","ask_price","bid_price","bid_amount"]
[1749493551290,0.852,659.29,658.68,3.78844363]
[1749493551691,0.852,659.29,658.65,3.78844363]
[1749493552188,1.17,659.28,658.65,3.78844363]
[1749493552591,1.17,659.28,658.66,3.78844363]
[1749493552992,1.17,659.28,658.67,3.78844363]
[1749493553489,1.17,659.28,658.63,3.78844363]
[1749493555693,1.17,659.28,658.64,3.78844363]
[1749493558790,1.17,659.28,658.63,3.78844363]
[1749493559594,1.17,659.28,658.64,3.78844363]
[1749493560295,1.17,659.28,658.63,3.78844363]
[1749493561095,1.17,659.28,658.61,0.30366985]
[1749493561096,1.17,659.28,658.62,3.78844363]
[1749493561595,1.17,659.28,658.61,0.30366985]
[1749493563795,1.248,659.27,658.61,0.30366985]
[1749493565792,1.138,659.26,658.61,0.30366985]
[1749493582201,1.259,659.25,658.61,0.30366985]
[1749493594814,1.056,659.24,658.61,0.30366985]
[1749493597917,1.223,659.23,658.61,0.30366985]
[1749493609922,1.056,659.24,658.61,0.30366985]
[1749493613623,0.86,659.23,658.61,0.30366985]
[1749493625625,0.988,659.22,658.61,0.30366985]
[1749493625924,2.141,659.22,658.61,0.30366985]
[1749493628833,1.037,659.21,658.61,0.30366985]
[1749493632537,1.193,659.2,658.61,0.30366985]
[1749493633135,1.193,659.2,658.62,3.78844363]
[1749493635435,1.193,659.2,658.61,0.30366985]
[1749493647247,0.908,659.19,658.61,0.30366985]
[1749493668667,0.966,659.18,658.61,0.30366985]
[1749493676371,0.966,659.18,658.65,3.78844363]
[1749493676875,0.966,659.18,658.66,3.78844363]
[1749493678278,0.937,659.17,658.66,3.78844363]
[1749493679177,0.937,659.17,658.63,3.78844363]
[1749493680979,0.937,659.17,658.62,3.78844363]
[1749493681376,0.937,659.17,658.61,0.30366985]
[1749493684179,0.891,659.16,658.61,0.30366985]
[1749493689080,0.891,659.16,658.61,4.09211348]
[1749493689476,0.891,659.16,658.61,0.30366985]
[1749493691285,0.891,659.16,658.63,3.78844363]
[1749493691678,0.891,659.16,658.66,3.78844363]
[1749493692382,0.891,659.16,658.61,0.30366985]
[1749493695284,0.885,659.15,658.61,0.30366985]
[1749493703284,0.814,659.14,658.61,0.30366985]
[1749493707286,0.92,659.13,658.61,0.30366985]
[1749493712089,0.92,659.13,658.73,3.78844363]
[1749493713593,0.92,659.13,658.74,3.78844363]
[1749493714091,0.92,659.13,658.75,3.78844363]
[1749493714293,0.19931533,659.13,658.75,3.78844363]
[1749493714493,1.23,659.12,658.75,3.78844363]
[1749493714989,1.23,659.12,658.74,3.78844363]
[1749493716394,1.23,659.12,658.76,3.78844363]
[1749493721297,1.23,659.12,658.75,3.78844363]
[1749493723194,1.23,659.12,658.69,3.78844363]
[1749493723594,1.23,659.12,658.67,3.78844363]
[1749493724099,1.23,659.12,658.64,3.78844363]
[1749493724299,1.23,659.12,658.65,0.3036514]
[1749493724502,1.23,659.12,658.65,4.09209503]
[1749493724901,1.23,659.12,658.65,0.3036514]
[1749493734508,0.26401238,659.56,658.65,0.3036514]
[1749493740017,0.26401238,659.56,658.65,4.09209503]
[1749493740217,0.26401238,659.56,658.66,3.78844363]
[1749493740616,0.26401238,659.56,658.69,3.78844363]
[1749493741619,0.26401238,659.56,658.7,3.78844363]
[1749493741821,0.993,659.55,658.7,3.78844363]
[1749493743421,0.993,659.55,658.65,0.3036514]
[1749493749320,1.065,659.54,658.65,0.3036514]
[1749493752726,2.16771866,659.54,658.65,0.3036514]
[1749493752927,1.065,659.54,658.65,0.3036514]
[1749493753325,2.16775974,659.54,658.65,0.3036514]
[1749493753526,1.065,659.54,658.65,0.3036514]
[1749493753926,2.1677609,659.54,658.65,0.3036514]
[1749493755824,1.279,659.53,658.65,0.3036514]
[1749493758532,2.38201474,659.53,658.65,0.3036514]
[1749493758734,1.279,659.53,658.65,0.3036514]
[1749493765636,1.152,659.52,658.65,0.3036514]
[1749493770338,3.68138421,659.52,658.65,0.3036514]
[1749493770643,1.10238421,659.51,658.65,0.3036514]
[1749493777149,1.239,659.5,658.65,0.3036514]
[1749493787553,2.34138421,659.5,658.65,0.3036514]
[1749493787750,1.10238421,659.49,658.65,0.3036514]
[1749493788050,1.51938421,659.49,658.65,0.3036514]
[1749493788248,0.417,659.49,658.65,0.3036514]
[1749493788453,1.51938421,659.49,658.65,0.3036514]
[1749493789151,0.417,659.49,658.65,0.3036514]
[1749493789349,1.51938421,659.49,658.65,0.3036514]
[1749493790350,1.10238421,659.48,658.65,0.3036514]
[1749493790549,1.10238421,659.47,658.65,0.3036514]
[1749493790850,1.10238421,659.46,658.65,0.3036514]
[1749493791049,1.10238421,659.45,658.65,0.3036514]
[1749493791253,1.10238421,659.44,658.65,0.3036514]
[1749493791453,1.10238421,659.43,658.65,0.3036514]
[1749493791655,1.10238421,659.42,658.65,0.3036514]
[1749493791952,2.36538421,659.41,658.65,0.3036514]
[1749493792150,1.10238421,659.4,658.65,0.3036514]
[1749493792654,1.263,659.41,658.65,0.3036514]
[1749493794055,2.36538421,659.41,658.65,0.3036514]
[1749493794258,1.10238421,659.4,658.65,0.3036514]
[1749493794557,1.263,659.41,658.65,0.3036514]
[1749493796054,2.36538421,659.41,658.65,0.3036514]
[1749493796258,1.10238421,659.4,658.65,0.3036514]
[1749493796458,1.263,659.41,658.65,0.3036514]
[1749493798054,2.36538421,659.41,658.65,0.3036514]
[1749493798258,1.10238421,659.4,658.65,0.3036514]
[1749493798758,1.263,659.41,658.65,0.3036514]
[1749493800459,2.36538421,659.41,658.65,0.3036514]
[1749493800655,1.10238421,659.4,658.65,0.3036514]
[1749493801156,1.257,659.39,658.65,0.3036514]
[1749493803265,0.899,659.38,658.65,0.3036514]
[1749493807368,1.19,659.37,658.65,0.3036514]
[1749493810870,0.864,659.36,658.65,0.3036514]
[1749493811476,0.417,659.35,658.65,0.3036514]
[1749493812973,0.827,659.34,658.65,0.3036514]
[1749493815773,1.123,659.33,658.65,0.3036514]
[1749493827787,0.417,659.32,658.65,0.3036514]
[1749493829383,1.26,659.31,658.65,0.3036514]
[1749493832896,1.389,659.3,658.65,0.3036514]
[1749493835194,1.389,659.3,658.81,2.2720064]
[1749493835497,1.389,659.3,658.8,2.2720064]
[1749493836394,1.389,659.3,658.81,2.2720064]
[1749493836595,1.389,659.3,658.8,2.2720064]
[1749493836795,1.389,659.3,658.79,2.2720064]
[1749493837001,1.389,659.3,658.81,2.2720064]
[1749493837293,1.389,659.3,658.87,2.2720064]
[1749493837497,1.174,659.29,658.87,2.2720064]
[1749493838498,1.174,659.29,658.86,2.2720064]
[1749493838699,1.174,659.29,658.65,0.3036514]
[1749493838700,1.174,659.29,658.87,2.2720064]
[1749493839097,1.174,659.29,658.86,2.2720064]
[1749493840901,1.174,659.29,658.87,2.2720064]
[1749493842801,1.174,659.29,658.88,2.2720064]
[1749493843497,1.174,659.29,658.87,2.2720064]
[1749493843999,1.174,659.29,658.95,2.2720064]
[1749493846205,1.174,659.29,658.94,2.2720064]
[1749493846702,1.174,659.29,658.65,0.3036514]
[1749493846703,1.174,659.29,658.92,2.2720064]
[1749493847105,1.174,659.29,658.93,2.2720064]
[1749493847305,1.174,659.29,658.92,2.2720064]
[1749493847805,1.174,659.29,658.93,2.2720064]
[1749493848106,1.174,659.29,658.92,2.2720064]
[1749493848401,1.174,659.29,658.93,2.2720064]
[1749493848904,1.174,659.29,658.94,2.2720064]
[1749493853213,1.174,659.29,658.91,2.2720064]
[1749493855314,1.174,659.29,658.92,2.2720064]
[1749493856113,1.174,659.29,658.93,2.2720064]
[1749493856711,1.174,659.29,658.94,2.2720064]
[1749493856914,1.174,659.29,658.95,2.2720064]
[1749493859619,0.806,659.3,658.95,2.2720064]
[1749493862715,0.806,659.3,658.94,2.2720064]
[1749493863221,0.806,659.3,658.93,2.2720064]
[1749493863419,1.277,659.29,658.93,2.2720064]
[1749493866224,1.277,659.29,658.65,0.3036514]
[1749493866225,1.277,659.29,658.89,2.2720064]
[1749493869525,1.098,659.28,658.88,2.2720064]
[1749493873026,1.098,659.28,658.91,2.2720064]
[1749493875631,1.098,659.28,658.92,2.2720064]
[1749493875834,1.098,659.28,658.96,2.2720064]
[1749493876332,1.098,659.28,658.95,2.2720064]
[1749493876528,1.098,659.28,658.89,2.2720064]
[1749493877633,1.098,659.28,658.86,2.2720064]
[1749493878030,1.098,659.28,658.85,2.2720064]
[1749493880034,1.098,659.28,658.86,2.2720064]
[1749493881935,1.098,659.28,658.85,2.2720064]
[1749493882236,1.098,659.28,658.86,2.2720064]
[1749493885842,2.3,659.28,658.86,2.2720064]
[1749493886342,2.3,659.28,658.87,2.2720064]
[1749493886542,2.3,659.28,658.9,2.2720064]
[1749493887642,2.3,659.28,658.94,2.2720064]
[1749493887941,2.3,659.28,658.98,2.2720064]
[1749493889143,2.3,659.28,658.97,2.2720064]
[1749493889343,2.3,659.28,658.98,2.2720064]
[1749493890343,2.3,659.28,658.99,2.2720064]
[1749493890647,2.3,659.28,658.98,2.2720064]
[1749493891249,1.076,659.27,658.94,2.2720064]
[1749493891748,1.076,659.27,658.95,2.2720064]
[1749493892448,1.076,659.27,658.96,2.2720064]
[1749493892648,1.076,659.27,658.95,2.2720064]
[1749493893348,1.076,659.27,658.97,2.2720064]
[1749493897454,1.076,659.27,658.93,2.2720064]
[1749493898353,1.076,659.27,658.94,2.2720064]
[1749493899053,1.076,659.27,658.92,2.2720064]
[1749493899954,1.076,659.27,658.91,2.2720064]
[1749493900252,1.076,659.27,658.92,2.2720064]
[1749493901055,1.076,659.27,658.94,2.2720064]
[1749493902457,1.34001038,659.27,658.94,2.2720064]
[1749493902754,1.34001038,659.27,658.65,0.3036514]
[1749493902755,1.34001038,659.27,658.74,2.2720064]
[1749493904254,1.34001038,659.27,658.71,2.2720064]
[1749493905758,0.991,659.26,658.71,2.2720064]
[1749493907662,0.991,659.26,658.72,2.2720064]
[1749493908160,0.991,659.26,658.71,2.2720064]
[1749493908859,0.991,659.26,658.72,2.2720064]
[1749493909862,0.991,659.26,658.71,2.2720064]
[1749493910058,0.991,659.26,658.72,2.2720064]
[1749493910863,0.974,659.25,658.72,2.2720064]
[1749493911166,0.974,659.25,658.71,2.2720064]
[1749493911864,0.966,659.24,658.71,2.2720064]
[1749493912660,0.966,659.24,658.81,2.2720064]
[1749493913264,0.966,659.24,658.82,2.2720064]
[1749493913465,0.966,659.24,658.84,2.2720064]
[1749493913966,0.966,659.24,658.88,2.2720064]
[1749493914866,1.117,659.23,658.89,2.2720064]
[1749493916968,1.117,659.23,658.9,2.2720064]
[1749493917868,1.117,659.23,658.91,2.2720064]
[1749493919173,1.117,659.23,658.92,2.2720064]
[1749493919973,1.117,659.23,658.91,2.2720064]
[1749493921073,1.117,659.23,658.97,2.2720064]
[1749493921369,1.117,659.23,658.96,2.2720064]
[1749493923373,1.117,659.23,658.94,2.2720064]
[1749493925573,1.117,659.23,658.93,2.2720064]
[1749493926273,1.117,659.23,658.94,2.2720064]
[1749493926771,1.117,659.23,658.95,2.2720064]
[1749493927871,1.117,659.23,658.94,2.2720064]
[1749493928077,1.117,659.23,658.95,2.2720064]
[1749493928874,1.117,659.23,658.72,2.2720064]
[1749493931978,1.117,659.23,658.73,2.2720064]
[1749493934976,1.117,659.23,658.72,2.2720064]
[1749493938082,1.254,659.22,658.72,2.2720064]
[1749493938783,1.254,659.22,658.86,2.2720064]
[1749493942088,1.254,659.22,658.87,2.2720064]
[1749493944890,1.254,659.22,658.89,2.2720064]
[1749493945092,1.254,659.22,658.85,2.2720064]
[1749493945688,1.254,659.22,658.84,2.2720064]
[1749493946493,1.254,659.22,658.83,2.2720064]
[1749493946694,1.254,659.22,658.86,2.2720064]
[1749493946894,1.254,659.22,658.87,2.2720064]
[1749493947394,1.254,659.22,658.86,2.2720064]
[1749493949192,1.254,659.22,658.87,2.2720064]
[1749493950397,1.254,659.22,658.86,2.2720064]
[1749493953400,1.254,659.22,658.94,2.2720064]
[1749493954599,1.254,659.22,658.95,2.2720064]
[1749493954800,1.254,659.22,658.99,2.2720064]
[1749493955499,1.254,659.22,659.0,2.2720064]
[1749493957497,1.254,659.22,659.01,2.2720064]
[1749493959102,1.254,659.22,659.0,2.2720064]
[1749493961100,1.254,659.22,659.01,2.2720064]
[1749493961698,1.254,659.22,658.96,2.2720064]
[1749493963501,1.254,659.22,658.95,2.2720064]
[1749493964202,1.254,659.22,658.96,2.2720064]
[1749493964400,1.254,659.22,658.8,2.2720064]
[1749493964606,1.254,659.22,658.78,2.2720064]
[1749493965400,1.254,659.22,658.75,2.2720064]
[1749493966098,1.117,659.23,658.75,2.2720064]
[1749493967202,1.117,659.23,658.74,2.2720064]
[1749493968112,1.117,659.23,658.71,2.2720064]
[1749493968412,1.117,659.23,658.7,2.2720064]
[1749493968813,1.117,659.23,658.71,2.2720064]
[1749493969514,1.117,659.23,658.72,2.2720064]
[1749493972521,1.117,659.23,658.73,2.2720064]
[1749493972922,0.417,659.25,658.73,2.2720064]
[1749493973623,3.7878738,659.57,658.73,2.2720064]
[1749493973821,1.061,659.24,658.73,2.2720064]
[1749493975521,1.228,659.23,658.73,2.2720064]
[1749493976221,1.084,659.22,658.73,2.2720064]
[1749493976622,1.084,659.22,658.74,2.2720064]
[1749493977223,0.417,659.21,658.74,2.2720064]
[1749493977820,0.417,659.21,658.93,2.2720064]
[1749493978020,0.417,659.21,658.94,2.2720064]
[1749493978918,0.417,659.21,658.96,2.2720064]
[1749493979722,0.937,659.2,658.96,2.2720064]
[1749493980223,0.937,659.2,658.93,2.2720064]
[1749493980525,0.937,659.2,658.96,2.2720064]
[1749493981024,0.937,659.2,658.97,2.2720064]
[1749493981425,0.937,659.2,658.96,2.2720064]
[1749493982323,0.937,659.2,658.97,2.2720064]
[1749493983829,0.937,659.2,658.98,2.2720064]
[1749493985030,0.937,659.2,658.49,4.05247304]
[1749493985031,0.937,659.2,659.01,2.2720064]
[1749493985228,0.937,659.2,658.57,3.78844363]
[1749493985229,0.937,659.2,659.02,2.2720064]
[1749493985428,0.937,659.2,659.01,2.2720064]
[1749493986734,0.937,659.2,659.02,2.2720064]
[1749493986930,0.937,659.2,659.01,2.2720064]
[1749493990133,0.937,659.2,659.03,2.2720064]
[1749493992234,0.937,659.2,659.14,1.51457023]
[1749493992436,0.937,659.2,659.12,1.51457023]
[1749493993237,0.937,659.2,659.13,1.51457023]
[1749493995744,0.937,659.2,659.12,1.51457023]
[1749493997643,0.937,659.2,659.11,1.51457023]
[1749494000146,0.937,659.2,659.12,1.51457023]
[1749494001047,0.937,659.2,659.13,1.51457023]
[1749494002142,0.937,659.2,659.15,1.51457023]
[1749494002944,1.084,659.22,659.15,1.51457023]
[1749494005048,1.084,659.22,659.05,1.51457023]
[1749494005451,1.084,659.22,659.06,1.51457023]
[1749494005849,1.084,659.22,659.07,1.51457023]
[1749494006549,0.902,659.21,659.06,1.51457023]
[1749494006751,0.902,659.21,659.07,1.51457023]
[1749494007054,0.902,659.21,658.9,2.2720064]
[1749494007455,0.902,659.21,658.88,2.2720064]
[1749494007655,0.902,659.21,658.94,2.2720064]
[1749494007856,0.902,659.21,659.06,2.2720064]
[1749494008054,0.902,659.21,659.05,2.2720064]
[1749494008254,0.902,659.21,659.04,2.2720064]
[1749494008555,0.902,659.21,659.05,2.2720064]
[1749494008753,0.902,659.21,659.06,2.2720064]
[1749494009354,0.902,659.21,659.19,1.51273235]
[1749494010158,0.902,659.21,659.18,1.51273235]
[1749494011155,0.902,659.21,659.19,1.51273235]
[1749494011352,0.902,659.21,658.49,0.26402941]
[1749494011353,0.902,659.21,659.18,1.51273235]
[1749494013153,0.902,659.21,659.17,1.51273235]
[1749494013357,0.902,659.21,659.02,2.2720064]
[1749494014260,0.902,659.21,659.01,2.2720064]
[1749494017257,0.902,659.21,659.03,2.2720064]
[1749494017561,0.902,659.21,659.13,2.2720064]
[1749494017758,0.902,659.21,658.69,3.78844363]
[1749494017759,0.902,659.21,659.14,2.2720064]
[1749494019265,0.902,659.21,659.13,2.2720064]
[1749494022266,0.902,659.21,659.12,2.2720064]
[1749494025365,0.902,659.21,659.11,2.2720064]
[1749494025566,0.902,659.21,659.12,2.2720064]
[1749494028866,0.902,659.21,659.13,2.2720064]
[1749494029069,0.902,659.21,659.12,2.2720064]
[1749494032975,0.902,659.21,659.11,2.2720064]
[1749494033374,0.902,659.21,659.12,2.2720064]
[1749494033573,0.902,659.21,659.13,2.2720064]
[1749494034470,1.178,659.33,659.13,2.2720064]
[1749494034771,1.178,659.33,659.23,1.50921484]
[1749494037275,1.178,659.33,659.24,1.50921484]
[1749494038176,1.178,659.33,659.23,1.50921484]
[1749494038875,0.26398234,659.48,659.23,1.50921484]
[1749494040783,0.26398234,659.48,659.24,1.50921484]
[1749494042178,0.26398234,659.48,659.23,1.50921484]
[1749494042678,0.26398234,659.48,659.24,1.50921484]
[1749494043482,0.26398234,659.48,659.23,1.50921484]
[1749494045484,0.26398234,659.48,659.24,1.50921484]
[1749494045786,1.239,659.61,659.12,1.50921484]
[1749494045980,0.26388225,659.59,659.11,1.50921484]
[1749494046183,0.26388225,659.59,659.12,1.50921484]
[1749494046484,1.239,659.61,659.13,1.50921484]
[1749494046686,1.239,659.61,659.15,1.50921484]
[1749494046882,1.239,659.61,659.2,1.50921484]
[1749494047083,1.239,659.61,659.19,1.50921484]
[1749494047386,1.239,659.61,659.18,1.50921484]
[1749494047583,1.239,659.61,659.17,1.50921484]
[1749494048085,1.239,659.61,659.14,1.50921484]
[1749494048291,1.239,659.61,659.13,1.50921484]
[1749494049390,1.239,659.61,659.14,1.50921484]
[1749494049985,1.239,659.61,659.1,1.50921484]
[1749494051389,1.239,659.61,658.91,2.2720064]
[1749494051390,1.239,659.61,659.11,1.50921484]
[1749494051683,1.239,659.61,659.1,1.50921484]
[1749494052186,1.239,659.61,659.11,1.50921484]
[1749494053386,1.239,659.61,659.05,1.50921484]
[1749494053792,1.239,659.61,659.02,1.50921484]
[1749494054392,1.239,659.61,659.0,1.50921484]
[1749494055294,1.239,659.61,659.01,1.50921484]
[1749494055795,1.239,659.61,659.04,1.50921484]
[1749494056094,1.239,659.61,659.03,1.50921484]
[1749494056389,1.239,659.61,659.04,1.50921484]
[1749494056995,0.26387625,659.68,659.04,1.50921484]
[1749494057594,0.26387625,659.68,659.05,1.50921484]
[1749494059400,0.26387625,659.68,659.07,1.50921484]
[1749494059994,0.26387625,659.68,659.1,1.50921484]
[1749494060199,0.26387625,659.68,659.11,1.50921484]
[1749494061500,0.26387625,659.68,658.93,2.2720064]
[1749494061501,0.26387625,659.68,659.12,1.50921484]
[1749494062297,0.26387625,659.68,659.13,1.50921484]
[1749494063100,0.26387625,659.68,659.19,1.50921484]
[1749494063300,0.26387625,659.68,658.49,0.26402941]
[1749494063301,0.26387625,659.68,659.22,1.50921484]
[1749494064299,0.26387625,659.68,659.26,1.50921484]
[1749494064598,0.26387625,659.68,659.25,1.50921484]
[1749494065002,0.26387625,659.68,659.29,1.50921484]
[1749494065505,0.26387625,659.68,659.28,1.50921484]
[1749494066303,0.26387625,659.68,659.31,1.50921484]
[1749494066505,0.26387625,659.68,659.34,1.50921484]
[1749494066701,1.208,659.67,659.34,1.50921484]
[1749494067203,1.208,659.67,659.36,1.50921484]
[1749494067403,1.208,659.67,659.35,1.50921484]
[1749494067607,1.208,659.67,659.36,1.50921484]
[1749494067807,1.208,659.67,659.35,1.50921484]
[1749494069604,1.208,659.67,659.37,1.50921484]
[1749494069809,1.208,659.67,659.4,1.50921484]
[1749494070010,1.208,659.67,659.43,1.50921484]
[1749494070407,1.208,659.67,659.42,1.50921484]
[1749494070804,1.208,659.67,659.41,1.50921484]
[1749494071809,1.208,659.67,659.42,1.50921484]
[1749494072111,1.208,659.67,659.43,1.50921484]
[1749494072405,1.208,659.67,659.41,1.50921484]
[1749494074611,1.208,659.67,659.4,1.50921484]
[1749494078611,1.208,659.67,659.39,1.50921484]
[1749494080513,1.208,659.67,659.4,1.50921484]
[1749494081514,1.208,659.67,659.27,2.2720064]
[1749494081515,1.208,659.67,659.41,1.50921484]
[1749494081712,0.26387625,659.68,659.41,1.50921484]
[1749494081913,0.26387625,659.68,659.4,1.50921484]
[1749494082416,0.26387625,659.68,658.79,3.78844363]
[1749494082417,0.26387625,659.68,659.41,1.50921484]
[1749494083617,0.26387625,659.68,659.4,1.50921484]
[1749494086118,0.26387625,659.68,659.41,1.50921484]
[1749494086318,0.26387625,659.68,659.4,1.50921484]
[1749494086618,0.26387625,659.68,659.41,1.50921484]
[1749494087313,0.26387625,659.68,659.4,1.50921484]
[1749494087819,0.26387625,659.68,659.41,1.50921484]
[1749494088018,1.206,659.67,659.41,1.50921484]
[1749494088718,1.206,659.67,659.4,1.50921484]
[1749494088918,1.206,659.67,659.41,1.50921484]
[1749494091821,1.206,659.67,659.42,1.50921484]
[1749494093323,1.206,659.67,659.43,1.50921484]
[1749494095223,1.206,659.67,659.42,1.50921484]
[1749494095420,1.206,659.67,659.41,1.50921484]
[1749494096122,1.206,659.67,659.42,1.50921484]
[1749494098021,1.206,659.67,659.27,1.50921484]
[1749494098319,1.206,659.67,659.25,1.50921484]
[1749494099125,1.206,659.67,659.09,2.2720064]
[1749494099126,0.26387625,659.68,659.24,1.50921484]
[1749494099325,0.26387625,659.68,659.25,1.50921484]
[1749494100825,0.26387625,659.68,659.24,1.50921484]
[1749494101221,0.26387625,659.68,659.23,1.50921484]
[1749494103127,1.236,659.67,659.23,1.50921484]
[1749494103320,1.236,659.67,659.28,1.50921484]
[1749494103527,1.236,659.67,659.27,1.50921484]
[1749494103923,1.236,659.67,659.29,1.50921484]
[1749494104224,1.236,659.67,659.31,1.50921484]
[1749494104928,1.236,659.67,659.3,1.50921484]
[1749494105324,1.236,659.67,659.31,1.50921484]
[1749494105523,1.236,659.67,659.32,1.50921484]
[1749494106526,0.865,659.66,659.32,1.50921484]
[1749494108230,0.865,659.66,659.34,1.50921484]
[1749494110231,0.865,659.66,659.35,1.50921484]
[1749494113237,0.865,659.66,659.36,1.50921484]
[1749494116936,0.865,659.66,659.37,1.50921484]
[1749494117635,1.236,659.67,659.37,1.50921484]
[1749494117933,1.236,659.67,659.36,1.50921484]
[1749494118341,1.332,659.66,659.36,1.50921484]
[1749494119339,1.332,659.66,659.37,1.50921484]
[1749494121240,1.332,659.66,659.36,1.50921484]
[1749494121540,1.332,659.66,659.37,1.50921484]
[1749494122439,1.332,659.66,658.81,3.78844363]
[1749494122440,1.332,659.66,659.33,1.50921484]
[1749494122943,1.332,659.66,659.3,1.50921484]
[1749494126346,1.332,659.66,659.26,1.50921484]
[1749494126842,1.332,659.66,659.23,1.50921484]
[1749494127243,2.52909467,659.66,659.22,1.50921484]
[1749494127447,0.503,659.65,659.22,1.50921484]
[1749494127746,0.503,659.65,659.07,2.2720064]
[1749494127747,0.503,659.65,659.24,1.50921484]
[1749494127944,0.503,659.65,659.23,1.50921484]
[1749494128148,0.503,659.65,659.22,1.50921484]
[1749494128343,0.503,659.65,659.23,1.50921484]
[1749494128547,0.503,659.65,659.22,1.50921484]
[1749494130951,0.899,659.64,659.22,1.50921484]
[1749494132248,0.899,659.64,659.07,2.2720064]
[1749494132249,0.899,659.64,659.23,1.50921484]
[1749494132748,0.899,659.64,659.24,1.50921484]
[1749494133052,0.899,659.64,659.23,1.50921484]
[1749494133754,0.899,659.64,659.22,1.50921484]
[1749494133956,0.899,659.64,659.24,1.50921484]
[1749494134458,0.899,659.64,659.23,1.50921484]
[1749494135351,1.019,659.63,659.23,1.50921484]
[1749494136953,1.019,659.63,659.26,1.50921484]
[1749494137152,1.019,659.63,659.29,1.50921484]
[1749494137653,1.019,659.63,659.28,1.50921484]
[1749494138252,1.019,659.63,659.29,1.50921484]
[1749494138557,1.019,659.63,659.24,1.50921484]
[1749494138754,1.019,659.63,659.21,1.50921484]
[1749494139557,1.019,659.63,659.2,1.50921484]
[1749494141455,1.019,659.63,658.55,3.78844363]
[1749494141456,1.019,659.63,659.19,1.50921484]
[1749494142357,1.019,659.63,659.2,1.50921484]
[1749494144357,2.21394308,659.63,659.2,1.50921484]
[1749494144556,1.1949431,659.62,659.2,1.50921484]
[1749494144754,1.019,659.63,659.2,1.50921484]
[1749494145057,2.21394501,659.63,659.2,1.50921484]
[1749494145255,2.41194537,659.62,659.2,1.50921484]
[1749494145458,1.217,659.62,659.2,1.50921484]
[1749494145958,2.41196984,659.62,659.19,1.50921484]
[1749494146158,1.217,659.62,659.19,1.50921484]
[1749494146652,2.41205754,659.62,659.19,1.50921484]
[1749494146854,1.217,659.62,659.19,1.50921484]
[1749494147457,2.41206096,659.62,659.19,1.50921484]
[1749494147759,1.217,659.62,659.19,1.50921484]
[1749494147960,2.41206043,659.62,659.19,1.50921484]
[1749494148255,1.217,659.62,659.19,1.50921484]
[1749494148459,1.217,659.62,659.23,1.50921484]
[1749494148657,1.217,659.62,659.24,1.50921484]
[1749494149362,1.217,659.62,659.23,1.50921484]
[1749494149858,2.41232167,659.62,659.23,1.50921484]
[1749494150059,1.217,659.62,659.23,1.50921484]
[1749494150960,1.217,659.62,659.2,1.50921484]
[1749494151165,1.217,659.62,659.21,1.50921484]
[1749494151561,1.217,659.62,659.2,1.50921484]
[1749494151763,0.948,659.61,659.19,1.50921484]
[1749494152468,0.948,659.61,659.07,2.2720064]
[1749494152469,0.948,659.61,659.2,1.50921484]
[1749494153668,2.14339592,659.61,659.2,1.50921484]
[1749494153964,0.948,659.61,659.21,1.50921484]
[1749494154268,0.503,659.6,659.21,1.50921484]
[1749494155065,0.503,659.6,659.18,1.50921484]
[1749494155369,0.503,659.6,659.2,1.50921484]
[1749494155869,0.503,659.6,659.21,1.50921484]
[1749494156370,0.503,659.6,659.17,1.50921484]
[1749494159270,0.503,659.6,659.18,1.50921484]
[1749494159471,0.503,659.6,659.19,1.50921484]
[1749494160768,0.503,659.6,659.2,1.50921484]
[1749494162868,0.503,659.6,659.21,1.50921484]
[1749494165070,0.503,659.6,659.23,1.50921484]
[1749494166369,0.503,659.6,659.29,1.50921484]
[1749494166574,0.503,659.6,659.28,1.50921484]
[1749494168174,1.217,659.62,659.24,1.50921484]